Cogmind - Beta 17 @@@ ROGUE MODE // 2026.07.01 @ 02:17:02 Player: OBLIQUE Result: Destroyed by S-43 Plague with Heavy Machine Gun Performance ------------- Evolutions (9) 4500 Regions Visited (27) 5400 Robots Destroyed (287) 1435 Value Destroyed (13787) 13787 Prototype IDs (52) 1040 Alien Tech Used (2) 400 Bonus (6990) 6990 TOTAL SCORE: 33552 Bonus ------- High Alert Combat Kills 2535 Follower Combat Kills 2849 Network Hubs Disabled 200 Met Imprinter 300 Was Imprinted 300 Met Zhirov 300 Met Warlord at Base 500 MAIN.C Attacked Warlord 500 Friendly Fire -494 Cogmind --------- Core Integrity 0/1600 Matter 280/300 Energy 126/350 System Corruption 6% Temperature Cool (0) Movement Core (450) Ox8 Location -1/Access Parts ------- > --- POWER (3) -------- Quantum Reactor > --- PROPULSION (5) --- (None) > --- UTILITY (11) ----- Enhanced Optical Array Advanced Target Analyzer Advanced Target Analyzer > --- WEAPON (6) ------- Enhanced Quantum Rifle > --- INVENTORY (5) ---- (None) Peak State ------------ > --- POWER ------------ Quantum Reactor Quantum Reactor Light Quantum Reactor > --- PROPULSION ------- Biometal Leg Heavy Shield Leg Heavy Shield Leg > --- UTILITY ---------- Advanced Cryofiber Web Advanced Heat Sink Advanced Heat Sink Advanced Heat Sink Enhanced Optical Array Advanced Target Analyzer Advanced Target Analyzer Centrium Medium Armor Plating Centrium Medium Armor Plating Centrium Heavy Armor Plating > --- WEAPON ----------- Enhanced Quantum Rifle Enhanced Quantum Rifle Enhanced Quantum Rifle Enhanced Quantum Rifle Matter Neutralizer Enhanced Nova Cannon > --- INVENTORY -------- Myomer Leg High-density Centrium Wheel Centrium Medium Armor Plating Phase Gun [Rating: 203] Favorites ----------- Power Improved Deuterium Engine Engine Improved Deuterium Engine Power Core Reinforced Fission Core Reactor Zionite Light DM Reactor Propulsion Medium Treads Treads Medium Treads Leg Flexi-carbon Leg Wheel Armored Wheel Hover Unit Zionite Glidesys I Utility Advanced Heat Sink Device Advanced Heat Sink Storage Energy Well Processor Enhanced Optical Array Hackware Improved Hacking Suite Protection Centrium Medium Armor Plating Weapon Enhanced Autogun Energy Gun Improved Arc Projector Energy Cannon Vortex Driver Ballistic Gun Enhanced Autogun Ballistic Cannon Linear Accelerator Launcher Vortex Catalyst Activator Impact Weapon Heavy Flail Slashing Weapon Chainsword Special Melee Weapon Improved Datajack Build | -11 -10 -10 -9 -8 -7 -7 -7 -7 -6 -6 -6 -6 -6 -6 -5 -5 -5 -5 -4 -4 -4 -4 -4 -3 -3 -2 -1 ------- Run | Yrd Mat Min Mat Mat Fac Low Low Zio Pro Fac Ext Cet Arc Hub Fac Upp Upp War Pro Fac Upp Upp Zhi Pro Res Res Acc Slots Evolved 18 | . . . 2 2 2 . . . . 2 . . . . 2 . . . . 2 . . . . 2 2 2 Power 2 | . . . . . . . . . . . . . . . . . . . . 1 . . . . 1 . . Propulsion 3 | . . . . . . . . . . . . . . . 2 . . . . . . . . . . 1 . Utility 9 | . . . 1 1 1 . . . . 2 . . . . . . . . . 1 . . . . . 1 2 Weapon 4 | . . . 1 1 1 . . . . . . . . . . . . . . . . . . . 1 . . Parts Attached 291 | 7 11 6 5 32 2 2 . 2 . 8 9 4 2 2 23 18 8 6 13 14 4 1 6 6 35 43 22 Power 34 | 2 1 1 . 3 1 1 . . . . 1 . 1 . 3 1 . . . . 1 . 1 1 5 6 5 Engine 8 | 2 1 1 . 3 . 1 . . . . . . . . . . . . . . . . . . . . . Core 3 | . . . . . 1 . . . . . . . . . 2 . . . . . . . . . . . . Reactor 23 | . . . . . . . . . . . 1 . 1 . 1 1 . . . . 1 . 1 1 5 6 5 Propulsion 66 | 2 3 3 2 10 . 1 . . . 1 . 1 . . 5 2 . . 6 2 2 . 3 . 9 10 4 Treads 15 | . . . . 6 . 1 . . . 1 . 1 . . 4 . . . . 1 . . . . 1 . . Leg 40 | . 3 3 1 4 . . . . . . . . . . 1 . . . 5 . 2 . 3 . 4 10 4 Wheel 6 | 2 . . 1 . . . . . . . . . . . . 1 . . 1 . . . . . 1 . . Hover 5 | . . . . . . . . . . . . . . . . 1 . . . 1 . . . . 3 . . Flight . | . . . . . . . . . . . . . . . . . . . . . . . . . . . . Utility 85 | 1 2 . 2 6 1 . . 1 . 5 6 2 1 1 6 8 5 . 3 6 . 1 2 1 7 10 8 Device 44 | . 2 . . 2 1 . . . . . 4 . 1 1 5 5 1 . 2 2 . . 2 1 6 4 5 Storage 7 | 1 . . . . . . . 1 . . . . . . . 1 4 . . . . . . . . . . Processor 19 | . . . 1 4 . . . . . 5 . . . . 1 . . . 1 1 . 1 . . 1 3 1 Hackware 1 | . . . . . . . . . . . . . . . . . . . . 1 . . . . . . . Protection 14 | . . . 1 . . . . . . . 2 2 . . . 2 . . . 2 . . . . . 3 2 Artifact . | . . . . . . . . . . . . . . . . . . . . . . . . . . . . Weapon 106 | 2 5 2 1 13 . . . 1 . 2 2 1 . 1 9 7 3 6 4 6 1 . . 4 14 17 5 Energy Gun 53 | 2 4 2 . 2 . . . . . . . 1 . . 3 4 . 4 2 1 1 . . 3 8 13 3 Energy Cannon 9 | . 1 . . . . . . . . . . . . . 1 . . 1 1 1 . . . . 1 3 . Ballistic Gun 25 | . . . 1 7 . . . 1 . . 1 . . 1 3 3 1 . 1 4 . . . 1 . . 1 Ballistic Cannon 11 | . . . . 1 . . . . . . . . . . 2 . 2 . . . . . . . 5 1 . Launcher 5 | . . . . 2 . . . . . 1 . . . . . . . 1 . . . . . . . . 1 Special Weapon . | . . . . . . . . . . . . . . . . . . . . . . . . . . . . Impact Weapon 1 | . . . . . . . . . . . 1 . . . . . . . . . . . . . . . . Slashing Weapon 1 | . . . . . . . . . . 1 . . . . . . . . . . . . . . . . . Piercing Weapon . | . . . . . . . . . . . . . . . . . . . . . . . . . . . . Special Melee Weapon 1 | . . . . 1 . . . . . . . . . . . . . . . . . . . . . . . Unidentified Prototypes 36 | . 2 . 1 1 . . . . . 1 3 3 1 . 3 6 . 3 . . . . 4 . 4 4 . Parts Lost 142 | . 1 11 . 7 . . . . . . 1 1 . 5 16 3 2 4 9 3 1 6 . 15 2 24 31 Power 13 | . . 1 . 1 . . . . . . . . . . 1 . . . . . 1 . . 2 . 3 4 Propulsion 31 | . . 3 . 2 . . . . . . . . . . 4 . . 2 3 1 . 2 . 4 . 4 6 Utility 43 | . . 2 . 2 . . . . . . 1 . . 2 4 2 2 . 3 1 . 1 . 4 1 6 12 Weapon 55 | . 1 5 . 2 . . . . . . . 1 . 3 7 1 . 2 3 1 . 3 . 5 1 11 9 Highest Loss Streak 25 | . 1 10 . 7 . . . . . . 1 1 . 4 12 2 2 4 5 3 1 3 . 5 2 6 25 To Critical Strikes 4 | . . . . . . . . . . . . 1 . . 1 . . . . . . . . . . . 2 Average Backups 4 | 2 7 7 5 4 4 5 5 5 5 4 5 4 5 4 4 4 3 4 3 3 4 3 3 4 4 4 3 Power . | . 1 1 1 . . . . . . . . . . . . . 1 1 1 . . . . 1 . 1 . Propulsion . | 1 2 2 1 1 1 1 1 1 1 1 1 1 1 1 . . . . . . . . . . . 1 1 Utility 1 | . . 2 2 1 . 1 2 2 2 . 1 1 2 1 2 3 2 1 1 2 3 3 2 1 . . 1 Weapon 1 | . 2 1 . 1 2 2 2 2 2 2 3 2 2 1 1 . . 1 1 1 1 . . . 2 1 . Tool/Special . | . . . . . . . . . . . . . . . . . . . . . . . . . . . . Unused Backups 29 | . 3 . . 9 3 1 . . . . 2 1 . 2 . . 1 1 1 1 . . 1 . 1 1 1 Power 2 | . 1 . . . . . . . . . . . . . . . . . . . . . . . . 1 . Propulsion 3 | . . . . 2 . . . . . . . . . 1 . . . . . . . . . . . . . Utility 16 | . . . . 7 1 . . . . . 1 1 . . . . 1 1 1 1 . . 1 . 1 . . Weapon 8 | . 2 . . . 2 1 . . . . 1 . . 1 . . . . . . . . . . . . 1 Tool/Special . | . . . . . . . . . . . . . . . . . . . . . . . . . . . . Average Slot Usage (%) 91 | . 97 90 32 92 99 100 100 99 100 99 99 93 92 91 88 79 90 93 83 85 92 78 76 69 83 87 72 Engine 3 | . 13 11 . 6 3 6 7 7 7 6 1 . . . . . . . . . . . . . . . . Core 1 | . . . . . 3 . . . . . . . . . . . . . . 4 5 5 3 . 3 . . Reactor 3 | . . . . . . . . . . . 4 6 6 6 4 3 5 5 5 5 3 5 6 6 7 11 9 Treads 7 | . . . . 12 15 15 15 15 15 13 13 8 6 6 15 5 5 5 3 1 5 2 . . . . . Leg 5 | . 25 27 11 5 . . . . . . . . . . . . . . 6 5 8 10 13 17 6 18 9 Wheel 1 | . 1 . 8 . . . . . . . . . . . . 4 5 5 1 5 5 . . . 3 . . Device 14 | . 12 11 . 8 14 15 15 14 15 13 12 8 5 7 10 18 19 23 22 11 21 17 16 18 13 18 12 Storage 3 | . 14 12 . . . . . . . . . . . . . 3 12 11 11 5 5 5 5 5 4 1 . Processor 18 | . . . 10 26 23 23 23 23 23 32 33 33 33 32 23 10 5 5 5 10 15 15 13 10 10 12 12 Protection 1 | . . . . . . . . . . . . 3 6 4 4 1 . . . 4 . 2 4 1 2 2 7 Energy Gun 8 | . 27 26 2 2 . . . . . . . 3 6 6 9 14 17 22 12 13 9 5 5 7 10 13 13 Energy Cannon 1 | . . . . . . . . . . . . . . . . . . 3 8 4 . 2 . . 3 3 5 Ballistic Gun 16 | . . . . 26 37 38 38 38 38 32 32 27 26 25 10 5 7 . 2 4 5 5 5 3 . . . Ballistic Cannon 1 | . . . . 1 . . . . . . . . . . 4 . 1 2 . . . . . . 9 3 . Peak Build Rating 203 | 6 12 18 7 34 44 46 46 46 46 59 67 85 88 84 101 86 88 98 106 116 116 112 104 122 147 170 203 Average Rating 74 | 4 10 12 4 30 42 45 46 45 46 55 62 78 84 81 86 68 77 95 88 95 110 86 88 90 124 152 156 On Entrance 62 | . 6 11 2 5 34 44 46 46 46 46 59 67 85 84 67 22 74 88 77 78 116 112 80 104 32 142 170 Avg Prop Armor Cover (%) 11 | . 7 14 29 33 . . . . . . . . . . 16 15 10 9 11 4 11 7 . 6 2 1 20 Naked Turns . | . . . . . . . . . . . . . . . . . . . . . . . . . . . . Heaviest Build 143 | 14 17 21 5 24 25 28 28 28 28 28 40 45 45 41 56 41 58 64 77 84 83 78 53 68 143 141 135 Greatest Support 148 | 20 20 25 3 43 43 48 48 48 48 48 48 80 80 80 124 14 12 12 60 12 20 40 110 110 106 145 148 Greatest Overweight (x) 7 | . 3 1 1 1 . . . . . . . . . . 1 3 4 5 4 6 6 6 1 2 7 4 3 Average Overweight (x) . | . . . . . . . . . . . . . . . . 1 2 4 2 5 4 1 . . 2 . . Largest Inventory Capacity 8 | 8 8 8 5 5 5 5 5 5 5 5 5 5 5 5 5 5 5 5 5 5 5 5 5 5 5 5 5 Average Capacity 5 | 6 8 7 5 5 5 5 5 5 5 5 5 5 5 5 5 5 5 5 5 5 5 5 5 5 5 5 5 Most Carried 8 | 3 8 8 5 5 5 5 5 5 5 5 5 5 5 5 5 5 5 5 5 5 5 5 5 5 5 5 5 Average Carried 4 | 2 7 7 4 4 4 4 5 5 5 4 4 4 5 4 4 4 3 4 4 4 5 4 4 4 4 4 3 Final Capacity 8 | 8 8 5 5 5 5 5 5 5 5 5 5 5 5 5 5 5 5 5 5 5 5 5 5 5 5 5 5 Final Carried 8 | 3 8 5 5 5 5 5 5 5 5 5 5 5 5 5 5 4 5 5 3 5 5 4 5 5 5 5 . Class Distribution -------------------- 31% | Skirmisher 15% | Mutant 13% | Scavenger-Gunner 8% | Gunner 7% | Scavenger-Executioner 7% | Messiah-Tank 5% | Messiah-Executioner Dominant Class ---------------- Mutant | -10/Materials Mutant | -10/Mines Mutant | -9/Materials Skirmisher | -8/Materials Skirmisher | -7/Factory Skirmisher | -7/Lower Caves Skirmisher | -7/Lower Caves Skirmisher | -7/Zion Skirmisher | -6/Proximity Caves Gunner | -6/Factory Gunner | -6/Extension Scavenger-Gunner | -6/Cetus Scavenger-Gunner | -6/Archives Scavenger-Gunner | -6/Hub_04(d) Scavenger-Gunner | -5/Factory Messiah-Gunner | -5/Upper Caves Messiah-Skirmisher | -5/Upper Caves Messiah-Tank | -5/Warlord Messiah-Tank | -4/Proximity Caves Tank | -4/Factory Skirmisher | -4/Upper Caves Mutant | -4/Upper Caves Mutant | -4/Zhirov Mutant | -3/Proximity Caves Messiah-Executioner | -3/Research Scavenger-Executioner | -2/Research Scavenger-Executioner | -1/Access Resources | -11 -10 -10 -9 -8 -7 -7 -7 -7 -6 -6 -6 -6 -6 -6 -5 -5 -5 -5 -4 -4 -4 -4 -4 -3 -3 -2 -1 ----------- Run | Yrd Mat Min Mat Mat Fac Low Low Zio Pro Fac Ext Cet Arc Hub Fac Upp Upp War Pro Fac Upp Upp Zhi Pro Res Res Acc Matter Collected 9627 | 270 250 30 . 952 390 587 85 66 40 290 1150 251 142 426 1037 399 148 30 187 138 227 36 . 215 1023 983 275 Remotely . | . . . . . . . . . . . . . . . . . . . . . . . . . . . . Salvage Created 14033 | 91 619 117 . 1034 529 448 99 . . 260 1081 129 139 700 1638 442 167 . 287 184 244 85 . 183 1069 2222 2266 Parts 686 | 2 43 2 . 60 33 20 6 . . 18 55 5 8 38 81 18 18 . 10 14 11 2 . 14 55 102 71 Haulers Intercepted 11 | . 1 . . 6 . . . . . . 1 . . 1 1 . . . . . . . . . 1 . . Recyclers Shooed 2 | . . . . . . . . . . . . . . . 1 . . . . . . . . . . 1 . Parts Field Recycled . | . . . . . . . . . . . . . . . . . . . . . . . . . . . . Retrieved Matter . | . . . . . . . . . . . . . . . . . . . . . . . . . . . . Parts Self-Destructed 90 | . . . . . . 9 7 . . . . . . . . 28 17 . 13 . 5 1 . 10 . . . Prevented 14 | . . . . . . . . . . . . . . . . . . . 2 . 8 4 . . . . . Parts Restored . | . . . . . . . . . . . . . . . . . . . . . . . . . . . . Kills | -11 -10 -10 -9 -8 -7 -7 -7 -7 -6 -6 -6 -6 -6 -6 -5 -5 -5 -5 -4 -4 -4 -4 -4 -3 -3 -2 -1 ------- Run | Yrd Mat Min Mat Mat Fac Low Low Zio Pro Fac Ext Cet Arc Hub Fac Upp Upp War Pro Fac Upp Upp Zhi Pro Res Res Acc Combat Hostiles Destroyed 225 | . 11 1 . 12 9 10 2 . . 5 13 2 2 12 35 8 3 . 11 6 4 1 . 4 18 26 30 Guns 171 | . 9 1 . 12 9 10 2 . . 5 13 2 2 12 31 8 3 . 5 4 4 1 . 4 4 11 19 Cannons 35 | . . . . . . . . . . . . . . . 3 . . . 6 . . . . . 13 10 3 AOE 9 | . 2 . . . . . . . . . . . . . 1 . . . . 2 . . . . . 2 2 Classes Destroyed 23 | 1 4 1 . 3 1 2 . . . 1 2 . . . 2 . . . 1 . 2 . . . 1 2 . Worker 9 | . . . . 2 . . . . . . 1 . . 1 2 . . . . 1 . . . . 1 1 . Builder 10 | . . . . 2 1 . . . . . . . . . 2 . . . . . . . . . 1 2 2 Tunneler 1 | . . . . . . . . . . . . . . . . . . . . . . . . . . 1 . Hauler 11 | . 1 . . 6 . . . . . . 1 . . 1 1 . . . . . . . . . 1 . . Recycler 8 | 1 2 1 . 1 1 . . . . . 1 . . . . . . . . . . . . . . 1 . Carrier 1 | . . . . . . . . . . . . . . . . . . . 1 . . . . . . . . Minesweeper 1 | . . . . . . . . . . . . . . . . . . . . . 1 . . . . . . Mechanic 3 | . . . . . . . . . . . . . . . 2 . . . . . . . . . . . 1 Operator 4 | . . . . . . . . . . 1 . . . 1 1 . . . . . . . . . . 1 . Watcher 14 | . 3 . . 3 1 . . . . . 1 . . 1 1 . . . . . . . . . 2 1 1 Swarmer 55 | . 6 . . 3 4 4 . . . . . . . 5 10 2 . . 5 4 . . . 2 6 . 4 Grunt 78 | . 5 . . 5 1 1 2 . . 1 5 . . 1 15 4 . . 5 . 2 . . . 2 13 16 Brawler 3 | . . . . . . . . . . . . . . . 1 . . . . . . . . . . 1 1 Duelist 1 | . . . . . . . . . . . . . . . . . . . 1 . . . . . . . . Sentry 26 | . . . . 4 3 . . . . 1 4 . 2 3 2 1 . . . . . 1 . . 3 1 1 Specialist 1 | . . . . . . . . . . . . . . . . . . . . . . . . . . 1 . Hunter 16 | . . . . . . . . . . . 2 . . 2 2 1 3 . . . . . . . . 1 5 Programmer 36 | . . . . . 1 1 . . . 3 . . . 1 5 . . . . 2 2 . . 2 7 9 3 Behemoth 2 | . . . . . . . . . . . 2 . . . . . . . . . . . . . . . . Cetus Guard 2 | . . . . . . . . . . . . 2 . . . . . . . . . . . . . . . Z-Light 1 | . . . . . . . . . . . . . . . . . . . . . . . . . 1 . . Samaritan 1 | . . . . . . . . . . . . . . . . . . . . . 1 . . . . . . Assembled 1 | . . 1 . . . . . . . . . . . . . . . . . . . . . . . . . Butcher 3 | . . . . . . 3 . . . . . . . . . . . . . . . . . . . . . Mutant 1 | . . . . . . 1 . . . . . . . . . . . . . . . . . . . . . Best Kill Streak 22 | 1 5 1 . 5 4 4 2 . . 1 3 2 2 5 22 6 2 . 5 2 2 1 . 2 4 4 9 Combat Bots Only 11 | . 5 1 . 3 4 4 2 . . 1 2 2 2 5 11 6 2 . 5 2 2 1 . 2 4 4 9 Max Kills in Single Turn 3 | 1 2 1 . 2 1 1 1 . . 1 1 1 1 2 3 2 1 . 1 2 2 1 . 1 2 2 2 Gunslinging 1 | . . . . . . . . . . . . . . 1 . 1 . . . . . . . . . . 1 Exploded 2 | . 1 . . . . . . . . . . . . . 1 . . . . 2 . . . . . 2 1 Melee . | . . . . . . . . . . . . . . . . . . . . . . . . . . . . Uniques/NPCs Destroyed . | . . . . . . . . . . . . . . . . . . . . . . . . . . . . Combat | -11 -10 -10 -9 -8 -7 -7 -7 -7 -6 -6 -6 -6 -6 -6 -5 -5 -5 -5 -4 -4 -4 -4 -4 -3 -3 -2 -1 -------- Run | Yrd Mat Min Mat Mat Fac Low Low Zio Pro Fac Ext Cet Arc Hub Fac Upp Upp War Pro Fac Upp Upp Zhi Pro Res Res Acc Hostile Shots Fired 1987 | . 18 87 2 58 43 16 4 . . . 90 4 . 80 270 44 18 52 87 16 32 32 . 181 88 259 506 Missed 649 | . 6 29 1 13 22 4 3 . . . 22 . . 27 88 14 5 8 27 5 11 13 . 82 24 88 157 Deflected 15 | . . . . . . . . . . . . . . . . . . . . . . . . . . . 15 Hits 1338 | . 12 58 1 45 21 12 1 . . . 68 4 . 53 182 30 13 44 60 11 21 19 . 99 64 171 349 Melee 15 | . . 7 . . . 1 . . . . . . . . 5 . . 1 . . . . . . . . 1 Projectile 1323 | . 12 51 1 45 21 11 1 . . . 68 4 . 53 177 30 13 43 60 11 21 19 . 99 64 171 348 AOE 1 | . . . . . . . . . . . . . . . . . . . . . . . . . . . 1 Critical Strikes 65 | . . 1 . 2 . 1 . . . . 3 1 . . 9 2 1 2 3 . 2 . . 5 4 17 12 Actively Blocked 1 | . . . . . . . . . . . . . . . . 1 . . . . . . . . . . . Part Disruptions 5 | . . 2 . . . . . . . . . . . . . . . . . . . . . 2 . 1 . Damage Taken 27458 | . 165 1065 15 1084 191 211 14 . . 40 1087 108 25 993 3483 506 217 551 819 208 421 532 . 2405 1388 4259 7671 Core 3732 | . 37 174 . 178 23 . . . . . 29 30 25 112 376 42 27 91 50 . 62 52 . 550 33 229 1612 Absorbed by Shields 483 | . . . . . . . . . . . . . . . . . . 220 263 . . . . . . . . Redirected to Shielding 137 | . . . . . . . . . . . . . . . . 137 . . . . . . . . . . . Ignored by Resistances 24 | . . . . . . . . . . . . . . . . 24 . . . . . . . . . . . Regen/Repaired (Parts) 839 | . 52 . . 44 . . . 582 . 40 . . . . . . . 58 . 63 . . . . . . . Core Remaining (%) 70 | 100 . 15 100 67 . . . . 96 . . . . 76 . . . . 41 . . . . 42 97 74 . Volleys Fired 569 | 3 19 13 . 53 22 23 4 . 2 10 54 6 7 28 59 12 6 . 23 11 17 5 . 13 46 70 63 Largest 6 | 2 2 2 . 4 5 5 5 . 5 5 5 5 5 5 5 5 4 . 5 5 4 4 . 5 6 6 6 Hottest 547 | 80 90 90 . 100 125 125 125 . 125 125 125 125 180 180 254 281 221 . 365 332 208 198 . 330 497 547 485 Shots Fired 2359 | 6 38 24 . 158 110 115 21 . 10 50 269 27 29 130 273 57 21 . 83 32 53 17 . 42 198 302 294 Gun 1963 | 6 38 24 . 158 110 115 21 . 10 50 269 27 29 130 215 57 21 . 54 29 47 13 . 42 81 202 215 Cannon 391 | . . . . . . . . . . . . . . . 58 . . . 29 2 4 3 . . 117 100 78 Launcher 5 | . . . . . . . . . . . . . . . . . . . . 1 2 1 . . . . 1 Special . | . . . . . . . . . . . . . . . . . . . . . . . . . . . . Kinetic 1278 | . . . . 151 110 115 21 . 10 50 269 27 28 107 175 24 8 . 13 5 17 5 . 17 75 48 3 Thermal 740 | . . 4 . 7 . . . . . . . . 1 23 98 33 13 . 16 18 13 6 . 13 78 127 290 Explosive 1 | . . . . . . . . . . . . . . . . . . . . . . . . . . . 1 Electromagnetic 252 | 6 38 20 . . . . . . . . . . . . . . . . 25 8 21 5 . 12 16 101 . Entropic 33 | . . . . . . . . . . . . . . . . . . . 29 1 2 1 . . . . . Phasic 55 | . . . . . . . . . . . . . . . . . . . . . . . . . 29 26 . Robot Hit Streak 24 | 1 10 7 . 13 10 21 24 . 1 9 18 20 11 14 16 20 5 . 8 5 12 6 . 8 8 14 17 Robot Miss Streak 10 | 1 3 3 . 4 3 4 2 . 4 4 6 1 2 4 3 3 3 . 5 3 4 1 . 2 10 4 4 Penetration Max 1 | . . . . . . . . . . . . . . . 1 . . . 1 . . . . . . . . Secondary Targets 20 | . . . . 2 2 2 . . . . 2 1 . 1 1 4 1 . 2 1 . . . . . . 1 Max Gunslinging Chain 2 | . . . . 1 1 1 . . . . 1 1 . 1 1 2 1 . 1 1 . . . . . . 1 Shots Hit Robots 1381 | 3 25 15 . 103 63 71 11 . 3 27 176 22 23 67 171 38 13 . 52 10 28 12 . 29 96 169 154 Core Hits 624 | 2 23 8 . 40 24 22 5 . 1 12 60 13 11 33 117 19 8 . 23 7 12 3 . 7 37 64 73 Critical Kills 20 | . . . . . 1 2 . . . . . . . 2 8 1 . . . . . . . . 1 2 3 Critical Parts Destroyed 19 | . . . . . . 1 . . . . 6 . . 3 5 . . . 1 . . . . . 1 2 . Critical Strikes 100 | . . . . . 1 3 . . . . 9 . . 5 28 2 . . 13 . . . . 1 5 25 8 Burn 16 | . . . . . . . . . . . . . . . 6 1 . . . . . . . 1 . 3 5 Meltdown 5 | . . . . . . . . . . . . . . . . . . . . . . . . . 1 1 3 Destroy 37 | . . . . . 1 3 . . . . 9 . . 5 13 1 . . 1 . . . . . 1 3 . Blast 19 | . . . . . . . . . . . . . . . 9 . . . . . . . . . 3 7 . Corrupt 8 | . . . . . . . . . . . . . . . . . . . . . . . . . . 8 . Sunder 12 | . . . . . . . . . . . . . . . . . . . 12 . . . . . . . . Intensify 3 | . . . . . . . . . . . . . . . . . . . . . . . . . . 3 . Melee Attacks 9 | . . . . . . . . . . 1 8 . . . . . . . . . . . . . . . . Impact 8 | . . . . . . . . . . . 8 . . . . . . . . . . . . . . . . Slashing 1 | . . . . . . . . . . 1 . . . . . . . . . . . . . . . . . Piercing . | . . . . . . . . . . . . . . . . . . . . . . . . . . . . Sneak Attacks . | . . . . . . . . . . . . . . . . . . . . . . . . . . . . Combat Hostiles . | . . . . . . . . . . . . . . . . . . . . . . . . . . . . Follow-up Attacks . | . . . . . . . . . . . . . . . . . . . . . . . . . . . . Damage Inflicted 39510 | 54 623 252 . 1892 1127 1289 222 . 66 500 3059 367 440 1571 5679 707 253 23 2371 558 1101 283 . 676 4018 6145 6234 Guns 26605 | 54 443 211 . 1892 1123 1289 222 . 66 500 3053 367 440 1337 3495 707 253 . 459 206 647 215 . 672 1508 3262 4184 Cannons 9570 | . . . . . . . . . . . . . . . 1249 . . . 1912 8 81 68 . . 2510 2552 1190 Explosions 3281 | . 180 36 . . . . . . . . . . . 234 935 . . . . 344 373 . . . . 331 848 Melee . | . . . . . . . . . . . . . . . . . . . . . . . . . . . . Ramming 54 | . . 5 . . 4 . . . . . 6 . . . . . . 23 . . . . . 4 . . 12 Kinetic 17310 | . . . . 1810 1123 1289 222 . 66 500 3053 367 416 875 3223 246 39 . 45 . 297 104 . 288 1493 1839 15 Thermal 13488 | . 180 68 . 82 . . . . . . . . 24 462 1625 461 214 . 156 161 227 89 . 213 1680 2487 5359 Explosive 1787 | . . . . . . . . . . . . . . . 831 . . . . . . . . . . 108 848 Electromagnetic 3061 | 54 443 179 . . . . . . . . . . . 234 . . . . 258 53 204 90 . 171 234 1141 . Impact . | . . . . . . . . . . . . . . . . . . . . . . . . . . . . Slashing . | . . . . . . . . . . . . . . . . . . . . . . . . . . . . Piercing . | . . . . . . . . . . . . . . . . . . . . . . . . . . . . Entropic 2629 | . . . . . . . . . . . . . . . . . . . 1912 344 373 . . . . . . Phasic 1181 | . . . . . . . . . . . . . . . . . . . . . . . . . 611 570 . Highest Corruption 12 | . . . 2 . . 1 2 2 2 . . . . 9 6 6 6 6 . . 1 1 1 12 10 8 6 Average Corruption 3 | . . . 2 . . 1 1 2 2 . . . . 2 1 6 6 6 . . 1 1 1 6 5 5 4 Corruption Purged 6 | . . . . . . . . . . . . . . . . . . . . . . . . . . 6 . Corruption Blocked . | . . . . . . . . . . . . . . . . . . . . . . . . . . . . Effects 180 | . . . 1 . . . 8 17 7 . . . . 7 4 18 12 2 . . 8 7 2 16 20 33 18 Message Errors 40 | . . . . . . . 4 6 1 . . . . 2 1 3 3 1 . . 3 2 1 4 3 5 1 Matter Fused 39 | . . . . . . . 1 3 . . . . . . . 5 2 . . . 2 2 1 5 3 10 5 Heat Flow Errors 25 | . . . 1 . . . . 1 1 . . . . 1 2 3 1 . . . 2 . . . 4 7 2 Energy Discharges 28 | . . . . . . . 1 5 2 . . . . 2 1 3 3 1 . . . 1 . 3 2 2 2 Parts Rejected 3 | . . . . . . . . . . . . . . . . . . . . . . . . . . 2 1 Parts Fused 1 | . . . . . . . . 1 . . . . . . . . . . . . . . . . . . . Data Loss (minor) 14 | . . . . . . . . . 2 . . . . 1 . 2 2 . . . . 1 . . 2 3 1 Data Loss (major) 9 | . . . . . . . 1 1 . . . . . 1 . 1 . . . . 1 . . 1 1 . 2 Misfires 6 | . . . . . . . 1 . . . . . . . . . . . . . . 1 . . 2 2 . Alerts 3 | . . . . . . . . . 1 . . . . . . 1 . . . . . . . . 1 . . Misdirections 4 | . . . . . . . . . . . . . . . . . . . . . . . . 3 1 . . Weapon Failures 8 | . . . . . . . . . . . . . . . . . 1 . . . . . . . 1 2 4 Overload Shots . | . . . . . . . . . . . . . . . . . . . . . . . . . . . . Overflow Damage 932 | . 27 . . . . . . . . . . . . 9 99 . . . 91 8 25 50 . . 257 246 120 Projectiles 666 | . . . . . . . . . . . . . . . 18 . . . 91 . . . . . 257 246 54 Explosions 266 | . 27 . . . . . . . . . . . . 9 81 . . . . 8 25 50 . . . . 66 Melee . | . . . . . . . . . . . . . . . . . . . . . . . . . . . . Knockbacks 28 | . . . . . . . . . . . . . . . 6 . . 1 . . . . . . 13 8 . Impact 1 | . . . . . . . . . . . . . . . . . . 1 . . . . . . . . . Kinetic 24 | . . . . . . . . . . . . . . . 6 . . . . . . . . . 11 7 . Secondary 3 | . . . . . . . . . . . . . . . . . . . . . . . . . 2 1 . Self-Inflicted Damage 632 | . 42 25 . . . . . . . . . . . 105 121 . . . . . . 163 . . . . 176 Shots 8 | . 1 1 . . . . . . . . . . . 1 2 . . . . . . 1 . . . . 2 Rammed 7 | . . . . . 1 . . . . . 1 . . . . . . 3 . . . . . . . . 2 Targets Rammed 13 | . 1 4 . . 1 . . . . . 1 . . . . . . 3 . . . . . 1 . . 2 Kicked 6 | . 1 4 . . . . . . . . . . . . . . . . . . . . . 1 . . . Crushed . | . . . . . . . . . . . . . . . . . . . . . . . . . . . . Highest Temperature 518 | 54 48 122 243 377 170 315 71 160 159 136 439 271 180 270 399 194 161 . 193 198 105 36 . 195 425 518 308 Average Temperature 102 | 28 22 41 131 94 65 113 44 80 61 48 156 133 101 100 91 107 24 . 98 72 37 19 . 90 103 204 82 Received Heat Transfer 3017 | . 30 361 9 180 24 . . . . . 162 . . 96 744 135 . 222 146 . 97 45 . 54 55 306 351 Effects 16 | . . . . . . . . . . . 2 . . . 4 . . . . . . . . . 1 9 . Shutdowns 1 | . . . . . . . . . . . . . . . . . . . . . . . . . . 1 . Energy Bleed 1 | . . . . . . . . . . . . . . . 1 . . . . . . . . . . . . Interference 7 | . . . . . . . . . . . 1 . . . 3 . . . . . . . . . . 3 . Matter Decay 2 | . . . . . . . . . . . . . . . . . . . . . . . . . 1 1 . Short Circuit 1 | . . . . . . . . . . . 1 . . . . . . . . . . . . . . . . Damage (major) 4 | . . . . . . . . . . . . . . . . . . . . . . . . . . 4 . Siege Activations . | . . . . . . . . . . . . . . . . . . . . . . . . . . . . Martial Activations . | . . . . . . . . . . . . . . . . . . . . . . . . . . . . Shielding Activations 4 | . . . . . . . . . . . . . . . . . . . . . . . . . . . 4 Total Turns 100 | . . . . . . . . . . . . . . . . . . . . . . . . . . . 100 Longest Duration 50 | . . . . . . . . . . . . . . . . . . . . . . . . . . . 50 Robots Disrupted 1 | . . . . . . . . . . . . . . . . . . . . . . . . . . 1 . Combat Hostiles 1 | . . . . . . . . . . . . . . . . . . . . . . . . . . 1 . Robots Corrupted 2 | . . . . . . . . . . . . . . . . . . . . . . . . . . 2 . Combat Hostiles 2 | . . . . . . . . . . . . . . . . . . . . . . . . . . 2 . Parts Fried 21 | . 1 . . . . . . . . . . . . 4 . . . . . . . 1 . . 1 14 . Impact Corruptions 1 | . . . . . . . . . . . . . . . . . . . . . . . . . 1 . . Robots Melted 8 | . . . . . . . . . . . . . . . . . . . . . . . . . 1 1 6 Combat Hostiles 8 | . . . . . . . . . . . . . . . . . . . . . . . . . 1 1 6 Parts Melted 41 | . . . . . . . . . . . . . . 1 7 2 . . . 1 . . . 1 7 6 16 Heat Transferred 18577 | . 100 125 . 185 . . . . . . . . 37 592 3608 814 333 . 335 335 383 200 . 550 1665 2840 6475 Parts Sabotaged . | . . . . . . . . . . . . . . . . . . . . . . . . . . . . Parts Stolen . | . . . . . . . . . . . . . . . . . . . . . . . . . . . . Parts Stripped . | . . . . . . . . . . . . . . . . . . . . . . . . . . . . Power Chain Reactions 4 | . 2 1 . . . . . . . . . . . . . . . . . . . . . . . 1 . Alert | -11 -10 -10 -9 -8 -7 -7 -7 -7 -6 -6 -6 -6 -6 -6 -5 -5 -5 -5 -4 -4 -4 -4 -4 -3 -3 -2 -1 ------- Run | Yrd Mat Min Mat Mat Fac Low Low Zio Pro Fac Ext Cet Arc Hub Fac Upp Upp War Pro Fac Upp Upp Zhi Pro Res Res Acc Maximum Alert Level 4 | . . . . . . . . . . 1 . . . 3 4 . . . . . . . . . 2 3 4 Low Security (%) 68 | 100 100 100 100 100 100 . . . . 96 100 100 100 21 . . . . . 100 . . . . 55 . . Level 1 10 | . . . . . . . . . . 3 . . . 35 68 . . . . . . . . . 30 13 . Level 2 9 | . . . . . . . . . . . . . . 41 6 . . . . . . . . . 14 27 52 Level 3 9 | . . . . . . . . . . . . . . 1 13 . . . . . . . . . . 59 37 Level 4 1 | . . . . . . . . . . . . . . . 12 . . . . . . . . . . . 10 Level 5 . | . . . . . . . . . . . . . . . . . . . . . . . . . . . . High Security . | . . . . . . . . . . . . . . . . . . . . . . . . . . . . Max Security . | . . . . . . . . . . . . . . . . . . . . . . . . . . . . Peak Influence 1334 | 5 130 110 38 161 163 . . . . 225 184 102 138 810 1334 . . . . 119 . . . . 572 1009 1152 Initial 597 | . . 23 . 15 50 . . . . 150 34 40 4 40 396 . . . . 33 . . . . . 321 597 Average 221 | . 34 46 . 48 24 . . . . 53 62 52 96 383 522 . . . . 36 . . . . 199 686 777 Influence Increases 11174 | 5 365 231 38 438 283 140 132 . 14 587 589 102 172 1186 1596 297 80 . 295 352 180 35 . 130 1104 1565 1258 Destroy 0b10 Robot/C 5880 | . 220 160 . 240 180 120 100 . . 240 380 80 80 500 760 260 60 . 240 140 80 20 . 80 580 760 600 Destroy 0b10 Robot/NC 400 | 5 30 5 . 70 15 . . . 10 15 30 5 . 35 45 . . . . 5 5 . . . 45 60 20 Destroy Leader 1198 | . 68 20 . 88 42 20 20 . . 80 54 . . 126 124 20 20 . 40 30 20 . . 20 132 182 92 Allied During Kill 817 | . . 26 . . . . 12 . 4 84 71 14 47 246 16 17 . . . 7 . . . . 97 176 . Successful Hack 208 | . 24 . 8 5 45 . . . . 14 31 . . . 19 . . . . 14 . . . . 48 . . Disable Machine 630 | . 15 . . 15 . . . . . . 15 . 45 165 240 . . . . 15 . . . . 30 45 45 Destroy Structure 1051 | . 8 5 . 5 1 . . . . 4 8 3 . 99 272 . . . . 66 . . . . 172 222 186 Advance Influence 150 | . . . . . . . . . . 150 . . . . . . . . . . . . . . . . . Partial Spotted 30 | . . . . . . . . . . . . . . . . . . . . . . . . . . . 30 Lose Combat Pursuer 810 | . . 15 30 15 . . . . . . . . . 15 120 . . . 15 75 75 15 . 30 . 120 285 Influence Decreases 10027 | 5 305 291 . 364 256 279 132 . 14 516 587 163 68 492 1072 851 375 485 241 295 291 35 . 130 532 1140 1108 Entered New Map 2585 | . . 37 . 23 62 52 . . . . 37 33 8 76 414 495 149 485 . 21 42 . . . . 251 400 Time Decay 5800 | 5 295 206 . 341 194 227 72 . 14 456 469 100 40 326 458 286 206 . 152 234 245 35 . 80 372 589 398 Lost Part 1013 | . 10 . . . . . . . . . 10 10 . 50 160 30 20 . 89 10 4 . . 50 20 240 310 Lost Ally 629 | . . 48 . . . . 60 . . 60 71 20 20 40 40 40 . . . 30 . . . . 140 60 . Squads Dispatched 61 | . 3 . . 2 4 . . . . 4 2 . . 9 9 . . . . 1 . . . . 6 12 9 Investigation 6 | . 2 . . . 1 . . . . . 1 . . 2 . . . . . . . . . . . . . Extermination 21 | . . . . . 2 . . . . 4 . . . 1 2 . . . . 1 . . . . 4 5 2 Reinforcement 13 | . 1 . . 1 1 . . . . . 1 . . 2 2 . . . . . . . . . 1 3 1 Assault 6 | . . . . . . . . . . . . . . 1 2 . . . . . . . . . . 1 2 Garrison 15 | . . . . 1 . . . . . . . . . 3 3 . . . . . . . . . 1 3 4 Intercept . | . . . . . . . . . . . . . . . . . . . . . . . . . . . . Searches Triggered . | . . . . . . . . . . . . . . . . . . . . . . . . . . . . Construction Impeded 3 | . . . . . . . . . . . . . . . 1 . . . . . . . . . . 1 1 Haulers Reinforced 1 | . . . . . . . . . . . . . . . . . . . . . . . . . 1 . . Active Scanning Responses . | . . . . . . . . . . . . . . . . . . . . . . . . . . . . Cargo Convoy Interrupts . | . . . . . . . . . . . . . . . . . . . . . . . . . . . . Stealth | -11 -10 -10 -9 -8 -7 -7 -7 -7 -6 -6 -6 -6 -6 -6 -5 -5 -5 -5 -4 -4 -4 -4 -4 -3 -3 -2 -1 --------- Run | Yrd Mat Min Mat Mat Fac Low Low Zio Pro Fac Ext Cet Arc Hub Fac Upp Upp War Pro Fac Upp Upp Zhi Pro Res Res Acc Distress Signals 22 | . 1 2 . 3 . . . . . . 1 1 . 2 4 . . . . . . . . . 3 3 2 Communications Jammed . | . . . . . . . . . . . . . . . . . . . . . . . . . . . . Distress Signals . | . . . . . . . . . . . . . . . . . . . . . . . . . . . . Times Spotted 471 | . 15 29 5 23 13 8 4 . 3 9 24 5 7 29 62 13 3 11 12 12 8 2 . 13 36 63 62 Peak Tracking Total 16 | . 4 16 5 4 3 3 2 . 1 3 3 5 1 6 14 6 2 9 5 4 3 1 . 7 5 9 15 Tactical Retreats 34 | . . 5 1 1 . . . . . . . . . 1 3 . . . 1 2 4 1 . 2 . 5 8 Traps | -11 -10 -10 -9 -8 -7 -7 -7 -7 -6 -6 -6 -6 -6 -6 -5 -5 -5 -5 -4 -4 -4 -4 -4 -3 -3 -2 -1 ------- Run | Yrd Mat Min Mat Mat Fac Low Low Zio Pro Fac Ext Cet Arc Hub Fac Upp Upp War Pro Fac Upp Upp Zhi Pro Res Res Acc Traps Triggered 13 | . 7 . 1 . 3 . . . . . . . . 1 . . . . . . . . . . . 1 . Indirectly . | . . . . . . . . . . . . . . . . . . . . . . . . . . . . Trap Hack Attempts . | . . . . . . . . . . . . . . . . . . . . . . . . . . . . Triggered . | . . . . . . . . . . . . . . . . . . . . . . . . . . . . Disarmed . | . . . . . . . . . . . . . . . . . . . . . . . . . . . . Reprogrammed . | . . . . . . . . . . . . . . . . . . . . . . . . . . . . Reused 1 | . . . . . . . . . . . . . . . . . . . . . 1 . . . . . . Traps Extracted . | . . . . . . . . . . . . . . . . . . . . . . . . . . . . Installed 4 | . . . . . . . . . . . . . . . . . . . . . 4 . . . . . . Triggered 1 | . . . . . . . . . . . . . . . . . . . . . 1 . . . . . . Machines | -11 -10 -10 -9 -8 -7 -7 -7 -7 -6 -6 -6 -6 -6 -6 -5 -5 -5 -5 -4 -4 -4 -4 -4 -3 -3 -2 -1 ---------- Run | Yrd Mat Min Mat Mat Fac Low Low Zio Pro Fac Ext Cet Arc Hub Fac Upp Upp War Pro Fac Upp Upp Zhi Pro Res Res Acc Machines Disabled 43 | . 1 . . 1 . 1 . . . . 1 . 3 11 16 . . . . 1 . . . . 2 3 3 Max in Single Turn 8 | . 1 . . 1 . 1 . . . . 1 . 1 8 5 . . . . 1 . . . . 1 2 2 Garrison Access 1 | . . . . 1 . . . . . . . . . . . . . . . . . . . . . . . Network Hub 1 | . . . . . . . . . . . . . . 1 . . . . . . . . . . . . . Machines Repaired . | . . . . . . . . . . . . . . . . . . . . . . . . . . . . Machines Dismantled . | . . . . . . . . . . . . . . . . . . . . . . . . . . . . Machines Sabotaged . | . . . . . . . . . . . . . . . . . . . . . . . . . . . . Overloaded Fab Kills . | . . . . . . . . . . . . . . . . . . . . . . . . . . . . Hacking | -11 -10 -10 -9 -8 -7 -7 -7 -7 -6 -6 -6 -6 -6 -6 -5 -5 -5 -5 -4 -4 -4 -4 -4 -3 -3 -2 -1 --------- Run | Yrd Mat Min Mat Mat Fac Low Low Zio Pro Fac Ext Cet Arc Hub Fac Upp Upp War Pro Fac Upp Upp Zhi Pro Res Res Acc Machines Accessed 49 | . 8 . 3 5 5 . . 1 . 3 6 1 . 1 4 1 1 1 . 2 . . 4 . 1 2 . Terminals 20 | . 7 . 2 2 3 . . . . . 4 1 . . . 1 . . . . . . . . . . . Fabricators 2 | . . . . . . . . . . 1 . . . . . . . . . 1 . . . . . . . Repair Stations 8 | . 1 . . 1 . . . . . 1 1 . . . 2 . . . . 1 . . . . . 1 . Recycling Units 2 | . . . 1 . . . . . . . 1 . . . . . . . . . . . . . . . . Scanalyzers 6 | . . . . 1 1 . . . . 1 . . . . 2 . . . . . . . . . 1 . . Garrison Access 4 | . . . . 1 1 . . . . . . . . 1 . . . . . . . . . . . 1 . Total Hacks 155 | . 27 . 8 13 15 . . 3 . 8 20 1 . 2 10 4 1 1 . 10 . . 16 . 10 6 . Successful 88 | . 16 . 3 7 8 . . 3 . 5 7 . . . 6 4 1 1 . 6 . . 16 . 4 1 . Failed 66 | . 11 . 5 6 7 . . . . 3 13 1 . 2 3 . . . . 4 . . . . 6 5 . Catastrophic 6 | . . . . . 1 . . . . . 2 1 . . . . . . . . . . . . . 2 . Database Lockouts 1 | . . . . . . . . . . . . . . . 1 . . . . . . . . . . . . Manual 115 | . 10 . 2 3 4 . . . . 11 30 1 . 21 2 . . . . 14 . . . . 11 3 3 Terminals 57 | . 21 . 7 7 5 . . . . . 12 1 . . . 4 . . . . . . . . . . . Fabricators 8 | . . . . . . . . . . 3 . . . . . . . . . 5 . . . . . . . Repair Stations 27 | . 6 . . 3 . . . . . 2 2 . . . 5 . . . . 5 . . . . . 4 . Recycling Units 7 | . . . 1 . . . . . . . 6 . . . . . . . . . . . . . . . . Scanalyzers 28 | . . . . 2 8 . . . . 3 . . . . 5 . . . . . . . . . 10 . . Garrison Access 7 | . . . . 1 2 . . . . . . . . 2 . . . . . . . . . . . 2 . Terminal Hacks 38 | . 8 . 2 1 1 . . 3 . . 1 . . . . 4 1 1 . . . . 16 . . . . Record 8 | . . . . . . . . . . . . . . . . 4 . . . . . . 4 . . . . Part Schematic 7 | . . . . . . . . 3 . . . . . . . . . . . . . . 4 . . . . Robot Analysis 8 | . 3 . . . 1 . . . . . . . . . . . . . . . . . 4 . . . . Prototype ID Bank 5 | . 1 . . . . . . . . . . . . . . . . . . . . . 4 . . . . Open Door 3 | . . . . . . . . . . . 1 . . . . . 1 1 . . . . . . . . . Level Access Points 1 | . . . 1 . . . . . . . . . . . . . . . . . . . . . . . . Branch Access Points 1 | . 1 . . . . . . . . . . . . . . . . . . . . . . . . . . Emergency Access Points 1 | . . . 1 . . . . . . . . . . . . . . . . . . . . . . . . Locate Traps 2 | . 1 . . 1 . . . . . . . . . . . . . . . . . . . . . . . Dispatch Records 1 | . 1 . . . . . . . . . . . . . . . . . . . . . . . . . . Investigation Status 1 | . 1 . . . . . . . . . . . . . . . . . . . . . . . . . . Fabricator Hacks 2 | . . . . . . . . . . 1 . . . . . . . . . 1 . . . . . . . Network Status 2 | . . . . . . . . . . 1 . . . . . . . . . 1 . . . . . . . Repair Station Hacks 17 | . 5 . . 2 . . . . . 2 1 . . . 3 . . . . 3 . . . . . 1 . Scan Component 11 | . 3 . . 1 . . . . . 1 1 . . . 2 . . . . 2 . . . . . 1 . Repair 6 | . 2 . . 1 . . . . . 1 . . . . 1 . . . . 1 . . . . . . . Recycling Unit Hacks 2 | . . . 1 . . . . . . . 1 . . . . . . . . . . . . . . . . Report Inventory 1 | . . . 1 . . . . . . . . . . . . . . . . . . . . . . . . Retrieve Components 1 | . . . . . . . . . . . 1 . . . . . . . . . . . . . . . . Scanalyzer 17 | . . . . 2 6 . . . . 2 . . . . 3 . . . . . . . . . 4 . . Insert Component 2 | . . . . . 1 . . . . . . . . . 1 . . . . . . . . . . . . Analyze 2 | . . . . . 1 . . . . . . . . . 1 . . . . . . . . . . . . Retrieve Study 13 | . . . . 2 4 . . . . 2 . . . . 1 . . . . . . . . . 4 . . Garrison Access Hacks 1 | . . . . 1 . . . . . . . . . . . . . . . . . . . . . . . Seal Access 1 | . . . . 1 . . . . . . . . . . . . . . . . . . . . . . . Unauthorized Hacks 11 | . 3 . . 1 1 . . . . . 4 . . . . . . . . 2 . . . . . . . Terminals 5 | . 3 . . 1 1 . . . . . . . . . . . . . . . . . . . . . . Assimilate 2 | . 1 . . . 1 . . . . . . . . . . . . . . . . . . . . . . Botnet 2 | . 1 . . 1 . . . . . . . . . . . . . . . . . . . . . . . Operators 1 | . 1 . . . . . . . . . . . . . . . . . . . . . . . . . . Fabricators 2 | . . . . . . . . . . . . . . . . . . . . 2 . . . . . . . Report 1 | . . . . . . . . . . . . . . . . . . . . 1 . . . . . . . Fabnet 1 | . . . . . . . . . . . . . . . . . . . . 1 . . . . . . . Repair Stations . | . . . . . . . . . . . . . . . . . . . . . . . . . . . . Recycling Units 4 | . . . . . . . . . . . 4 . . . . . . . . . . . . . . . . Monitor 1 | . . . . . . . . . . . 1 . . . . . . . . . . . . . . . . Reject 1 | . . . . . . . . . . . 1 . . . . . . . . . . . . . . . . Recyclers 1 | . . . . . . . . . . . 1 . . . . . . . . . . . . . . . . Mask 1 | . . . . . . . . . . . 1 . . . . . . . . . . . . . . . . Scanalyzers . | . . . . . . . . . . . . . . . . . . . . . . . . . . . . Garrison Access . | . . . . . . . . . . . . . . . . . . . . . . . . . . . . Data Cores Recovered 2 | . . . . . . . . . . 1 . . . . . . . . . . . . . . . 1 . Used . | . . . . . . . . . . . . . . . . . . . . . . . . . . . . Hacking Detections 34 | . 8 . 2 4 5 . . . . 2 5 1 . 1 2 . . . . 1 . . . . 1 2 . Full Trace Events 3 | . 1 . . . . . . . . . 1 . . 1 . . . . . . . . . . . . . Feedback Events 1 | . . . . . . . . . . . . . . 1 . . . . . . . . . . . . . Corruption 1 | . . . . . . . . . . . . . . 1 . . . . . . . . . . . . . Feedback Blocked . | . . . . . . . . . . . . . . . . . . . . . . . . . . . . Robot Schematics Acquired 3 | . . . . . . . . . . . . . . 3 . . . . . . . . . . . . . Robots Built . | . . . . . . . . . . . . . . . . . . . . . . . . . . . . Authchips . | . . . . . . . . . . . . . . . . . . . . . . . . . . . . Time . | . . . . . . . . . . . . . . . . . . . . . . . . . . . . Total Robot Build Rating . | . . . . . . . . . . . . . . . . . . . . . . . . . . . . Part Schematics Acquired 29 | . . . . . 1 . . 3 . . . . . 20 1 . . . . . . . 4 . . . . Parts Built . | . . . . . . . . . . . . . . . . . . . . . . . . . . . . Authchips . | . . . . . . . . . . . . . . . . . . . . . . . . . . . . Time . | . . . . . . . . . . . . . . . . . . . . . . . . . . . . Total Part Build Rating . | . . . . . . . . . . . . . . . . . . . . . . . . . . . . Part Studies Acquired 13 | . . . . 2 4 . . . . 2 . . . . 1 . . . . . . . . . 4 . . Parts Repaired 5 | . 2 . . 1 . . . . . 1 . . . . . . . . . 1 . . . . . . . Time 383 | . 77 . . 60 . . . . . 60 . . . . 136 . . . . 50 . . . . . . . Parts Recycled . | . . . . . . . . . . . . . . . . . . . . . . . . . . . . Recycled Matter . | . . . . . . . . . . . . . . . . . . . . . . . . . . . . Retrieved Matter . | . . . . . . . . . . . . . . . . . . . . . . . . . . . . Retrieved Components 9 | . . . . . . . . . . . 9 . . . . . . . . . . . . . . . . Parts Scanalyzed 2 | . . . . . 1 . . . . . . . . . 1 . . . . . . . . . . . . Part Schematics Acquired 2 | . . . . . 1 . . . . . . . . . 1 . . . . . . . . . . . . Parts Damaged . | . . . . . . . . . . . . . . . . . . . . . . . . . . . . Bothacking | -11 -10 -10 -9 -8 -7 -7 -7 -7 -6 -6 -6 -6 -6 -6 -5 -5 -5 -5 -4 -4 -4 -4 -4 -3 -3 -2 -1 ------------ Run | Yrd Mat Min Mat Mat Fac Low Low Zio Pro Fac Ext Cet Arc Hub Fac Upp Upp War Pro Fac Upp Upp Zhi Pro Res Res Acc Used RIF Installer . | . . . . . . . . . . . . . . . . . . . . . . . . . . . . Robots Hacked 4 | . . . . . . . . . . . . . . . . . . . . . . . . 1 2 1 . Non-combat . | . . . . . . . . . . . . . . . . . . . . . . . . . . . . Combat 4 | . . . . . . . . . . . . . . . . . . . . . . . . 1 2 1 . Robot Hacks Applied . | . . . . . . . . . . . . . . . . . . . . . . . . . . . . Relay Couplers Released 4 | . . . . . . . . . . . . . . . . . . . . . . . . . . 4 . Programmers 4 | . . . . . . . . . . . . . . . . . . . . . . . . . . 4 . Fabnet Peak Effective % 3 | . . . . . . . . . . . . . . . . . . . . . . . . 3 3 1 . Autooverrided 4 | . . . . . . . . . . . . . . . . . . . . . . . . 1 2 1 . Robots Rewired 8 | . . . . . . 3 . . . . 3 . . . . . . 2 . . . . . . . . . Allies Hacked . | . . . . . . . . . . . . . . . . . . . . . . . . . . . . Hacks Repelled . | . . . . . . . . . . . . . . . . . . . . . . . . . . . . Allies | -11 -10 -10 -9 -8 -7 -7 -7 -7 -6 -6 -6 -6 -6 -6 -5 -5 -5 -5 -4 -4 -4 -4 -4 -3 -3 -2 -1 -------- Run | Yrd Mat Min Mat Mat Fac Low Low Zio Pro Fac Ext Cet Arc Hub Fac Upp Upp War Pro Fac Upp Upp Zhi Pro Res Res Acc Total Allies 44 | . . 3 . . . 3 . 4 . 2 5 2 . 2 3 . . 2 . 3 . . . 1 11 3 . Largest Group 5 | . . 3 . . . 3 3 4 4 4 4 4 4 5 3 2 . 2 . 2 . . . 1 4 4 . Highest-Rated Group 412 | . . 40 . . . 48 48 154 154 154 255 259 259 260 210 140 . 95 . 162 . . . 30 412 406 . Highest-Rated Ally 122 | . . 16 . . . 16 16 41 41 51 85 96 96 96 96 70 . 49 . 81 . . . 30 103 122 . Zionite Dispatches 12 | . . . . . . . . . . 1 2 . . 1 1 . . . . 2 . . . . 4 1 . Heavy 4 | . . . . . . . . . . . 1 . . . . . . . . . . . . . 2 1 . Light 2 | . . . . . . . . . . . . . . . 1 . . . . . . . . . 1 . . Recon 1 | . . . . . . . . . . . 1 . . . . . . . . . . . . . . . . Hacker 4 | . . . . . . . . . . 1 . . . 1 . . . . . 1 . . . . 1 . . Defense Resupply 1 | . . . . . . . . . . . . . . . . . . . . 1 . . . . . . . Total Orders 5 | . . . . . . . 1 . . . 1 . . . . . . 1 . 2 . . . . . . . STAY 2 | . . . . . . . 1 . . . . . . . . . . 1 . . . . . . . . . DROP 1 | . . . . . . . . . . . . . . . . . . . . 1 . . . . . . . PICKUP 1 | . . . . . . . . . . . . . . . . . . . . 1 . . . . . . . EXPLORE 1 | . . . . . . . . . . . 1 . . . . . . . . . . . . . . . . Ally Attacks 380 | . . 44 . . . . 14 . 7 49 14 13 13 58 14 19 . 5 . 3 . . . 4 76 47 . Total Damage 12487 | . . 396 . . . . 157 . 28 824 932 241 430 1429 360 423 . 97 . 117 . . . 46 3746 3261 . Kills 96 | . . 10 . . . . 3 . 2 9 8 3 2 18 3 5 . . . 1 . . . . 15 17 . Allies Corrupted 1 | . . . . . . . . . . . . . . . . . . . . . . . . . 1 . . Allies Melted 1 | . . . . . . . . . . . . . . . . . . . . . . . . . 1 . . Intel | -11 -10 -10 -9 -8 -7 -7 -7 -7 -6 -6 -6 -6 -6 -6 -5 -5 -5 -5 -4 -4 -4 -4 -4 -3 -3 -2 -1 ------- Run | Yrd Mat Min Mat Mat Fac Low Low Zio Pro Fac Ext Cet Arc Hub Fac Upp Upp War Pro Fac Upp Upp Zhi Pro Res Res Acc Active Infowar (turns) 23301 | . . . 209 1399 1574 958 678 1601 346 2100 1897 215 95 733 1143 626 433 1183 676 777 1178 828 241 379 1214 1859 959 Optics 23301 | . . . 209 1399 1574 958 678 1601 346 2100 1897 215 95 733 1143 626 433 1183 676 777 1178 828 241 379 1214 1859 959 Sensors 12487 | . . . . 1280 1574 958 678 1601 346 2100 1601 . . 210 80 . . . . 37 1178 353 . . 491 . . Decoding 3741 | . . . . . . . . . . . . . . . . . . . 2 777 1178 828 241 379 336 . . Robot Analysis Total 8 | . 3 . . . 1 . . . . . . . . . . . . . . . . . 4 . . . . Derelict Logs Recovered 14 | . . . . . . 1 1 2 1 . . . . . . 1 2 . 2 . 3 1 . . . . . Drone Launches 2 | . . . . . . . . . . . 2 . . . . . . . . . . . . . . . . Drone Recoveries 2 | . . . . . . . . . . . 2 . . . . . . . . . . . . . . . . Decoded 0b10 Intel 14 | . . . . . . . . . . . . . . . . . . . . 8 . . . . 6 . . Traps 8 | . . . . . . . . . . . . . . . . . . . . 6 . . . . 2 . . Emergency Access 4 | . . . . . . . . . . . . . . . . . . . . . . . . . 4 . . Exits 2 | . . . . . . . . . . . . . . . . . . . . 2 . . . . . . . Zionite Intel Received 10 | . . . . . . . . . . 2 4 . . 4 . . . . . . . . . . . . . Branch Access 1 | . . . . . . . . . . 1 . . . . . . . . . . . . . . . . . Component Schematics 1 | . . . . . . . . . . . . . . 1 . . . . . . . . . . . . . Prototype Schematics 1 | . . . . . . . . . . . . . . 1 . . . . . . . . . . . . . Unaware Schematics 1 | . . . . . . . . . . . . . . 1 . . . . . . . . . . . . . Unaware Analyses 3 | . . . . . . . . . . . 2 . . 1 . . . . . . . . . . . . . Active Terminals 1 | . . . . . . . . . . 1 . . . . . . . . . . . . . . . . . Depthwide Sectors/0 1 | . . . . . . . . . . . 1 . . . . . . . . . . . . . . . . Depthwide Sectors/-1 1 | . . . . . . . . . . . 1 . . . . . . . . . . . . . . . . Exploration | -11 -10 -10 -9 -8 -7 -7 -7 -7 -6 -6 -6 -6 -6 -6 -5 -5 -5 -5 -4 -4 -4 -4 -4 -3 -3 -2 -1 ------------- Run | Yrd Mat Min Mat Mat Fac Low Low Zio Pro Fac Ext Cet Arc Hub Fac Upp Upp War Pro Fac Upp Upp Zhi Pro Res Res Acc Turns Passed 25412 | 87 1460 554 219 1399 1574 958 678 1601 346 2100 1897 215 95 733 1143 626 433 1183 676 777 1178 828 241 379 1214 1859 959 Spaces Moved 13228 | 78 672 396 180 719 438 526 415 988 211 1215 1002 117 42 395 428 385 314 639 265 323 469 425 141 265 527 1066 587 Core 607 | 1 2 5 180 36 . . . . . . . . . . 111 62 . . . . . . . 1 5 . 204 Treads 6234 | . . . . 435 438 526 415 988 211 1215 1002 117 42 395 317 . . . 133 . . . . . . . . Legs 3839 | . 581 391 . 248 . . . . . . . . . . . . . . 32 . 161 401 141 264 187 1063 370 Wheels 2438 | 77 89 . . . . . . . . . . . . . . 213 314 639 100 323 308 24 . . 335 3 13 Hover 110 | . . . . . . . . . . . . . . . . 110 . . . . . . . . . . . Flight . | . . . . . . . . . . . . . . . . . . . . . . . . . . . . Fastest Speed 50 | 50 80 50 50 50 160 160 160 160 160 160 165 160 160 160 50 50 120 135 120 135 165 180 120 120 90 110 50 Average Speed 153 | 79 125 120 51 139 160 160 160 160 160 164 165 161 160 160 164 139 126 158 214 174 230 189 158 120 177 134 109 Slowest Speed 330 | 80 200 190 100 240 160 160 160 160 160 165 165 165 160 160 237 225 150 165 330 180 330 190 190 150 230 200 255 Overloaded Moves . | . . . . . . . . . . . . . . . . . . . . . . . . . . . . Propulsion Burnouts . | . . . . . . . . . . . . . . . . . . . . . . . . . . . . Robots Hopped . | . . . . . . . . . . . . . . . . . . . . . . . . . . . . Potential Cave-ins 2 | . . . . . . . . . . . . . . . 2 . . . . . . . . . . . . Cave-ins Triggered 1 | . . . . . . . . . . . . . . 1 . . . . . . . . . . . . . Teleports 1 | . . . . . . . . . . . . . . . . . . . . . . . . . . 1 . Exploration Rate (%) 53 | 3 93 69 24 51 16 75 62 90 61 28 86 65 75 50 18 63 54 90 57 11 77 86 61 51 20 35 19 Regions Visited 27 Branch Regions 17 Pre-discovered Areas 21 | . . . . . . . . 2 . . 15 . . . . . . . . . 1 . 3 . . . . Known Exits Taken 21 | . 1 . 1 1 1 1 1 1 1 1 1 1 1 1 1 . . 1 1 1 1 1 . 1 1 . . Unknown Exits Taken 6 | 1 . 1 . . . . . . . . . . . . . 1 1 . . . . . 1 . . 1 . Scrap Searched 16 | . . . . . . 2 1 4 2 . . . . . . 1 2 . 1 . 2 1 . . . . . Spaces Dug 16 | . . . . . . . . . . 1 . . . . . . . . . . . . . . 3 5 7 Terrain Destroyed 628 | . 7 5 . . . . . . . 1 . . . 166 139 6 . . 22 38 61 17 . 1 53 50 62 Melee 1 | . . . . . . . . . . 1 . . . . . . . . . . . . . . . . . Projectile 201 | . . . . . . . . . . . . . . 3 37 6 . . 22 . 4 . . 1 53 38 37 AOE 426 | . 7 5 . . . . . . . . . . . 163 102 . . . . 38 57 17 . . . 12 25 Terrain Rammed . | . . . . . . . . . . . . . . . . . . . . . . . . . . . . Walls Destroyed . | . . . . . . . . . . . . . . . . . . . . . . . . . . . . Machines Disabled . | . . . . . . . . . . . . . . . . . . . . . . . . . . . . Actions | -11 -10 -10 -9 -8 -7 -7 -7 -7 -6 -6 -6 -6 -6 -6 -5 -5 -5 -5 -4 -4 -4 -4 -4 -3 -3 -2 -1 --------- Run | Yrd Mat Min Mat Mat Fac Low Low Zio Pro Fac Ext Cet Arc Hub Fac Upp Upp War Pro Fac Upp Upp Zhi Pro Res Res Acc Total 17190 | 93 1245 449 305 1068 1297 627 426 1008 218 1310 1191 142 63 466 712 441 336 807 314 513 526 436 158 294 697 1307 741 Wait 2585 | 4 504 25 115 218 824 6 8 13 6 66 76 6 9 34 170 11 1 123 10 145 29 3 . 6 59 62 52 Move 13202 | 77 671 395 179 718 437 525 414 987 210 1214 1001 116 41 394 427 384 313 639 264 322 468 424 140 264 526 1065 587 Hop . | . . . . . . . . . . . . . . . . . . . . . . . . . . . . Pick Up 88 | 2 12 1 1 17 4 1 . . . 3 3 2 . 4 6 3 2 2 2 4 . 1 2 1 6 8 1 Fast Attach 232 | 6 19 3 3 19 3 . . 4 . 4 8 3 3 1 14 18 5 8 10 13 2 . 7 5 29 34 11 Attach 52 | . 1 3 1 4 1 . . . . 2 . . . 1 6 2 2 1 3 4 . 2 1 1 4 6 7 Detach 29 | . 1 . . 2 . . . . . 1 . 1 . . 2 3 3 1 . 4 . . 2 . 4 5 . Swap 89 | 1 5 2 2 10 1 2 . . . 5 8 2 . 1 12 1 1 . . 2 3 1 1 1 4 14 10 Drop 195 | . 12 3 4 27 4 3 . 4 . 4 11 6 3 3 16 7 3 11 2 8 3 . 5 2 19 27 8 Fire 569 | 3 19 13 . 53 22 23 4 . 2 10 54 6 7 28 59 12 6 . 23 11 17 5 . 13 46 70 63 Melee 9 | . . . . . . . . . . 1 8 . . . . . . . . . . . . . . . . Ram 2 | . . . . . . . . . . . . . . . . . . . . . . . . . . . 2 Kick 6 | . 1 4 . . . . . . . . . . . . . . . . . . . . . 1 . . . Crush 4 | . . . . . 1 . . . . . 1 . . . . . . 2 . . . . . . . . . Escape Stasis . | . . . . . . . . . . . . . . . . . . . . . . . . . . . . Rewire 124 | . . . . . . 67 . . . . 21 . . . . . . 20 . . . . . . . 16 . Trap 4 | . . . . . . . . . . . . . . . . . . . . . 4 . . . . . . Miscellaneous . | . . . . . . . . . . . . . . . . . . . . . . . . . . . . Route ------- -11/Scrapyard -10/Materials (discovered 3 exits: *Mat x2 / *Min) -10/Mines -9/Materials (discovered 3 exits: *Mat x3) -8/Materials (discovered 2 exits: *Fac x2) -7/Factory -7/Lower Caves -7/Lower Caves (discovered 2 exits: *Fac / *Zio) -7/Zion -6/Proximity Caves -6/Factory (discovered 4 exits: *Low x2 / *Ext x2) -6/Extension (discovered 3 exits: *Fac x2 / *Cet) -6/Cetus -6/Archives -6/Hub_04(d) (discovered 2 exits: *Fac x2) -5/Factory -5/Upper Caves -5/Upper Caves -5/Warlord -4/Proximity Caves -4/Factory (discovered 2 exits: *Res / *Upp) -4/Upper Caves -4/Upper Caves -4/Zhirov -3/Proximity Caves -3/Research (discovered 2 exits: *Res / Arm) -2/Research -1/Access History --------- Turn | Location | Event 12 | -11/Scrapyard | Discovered new exit (range 15) 88 | -11/Scrapyard | Entered Materials 116 | -10/Materials | Identified exit to Mines 165 | -10/Materials | Discovered new exit (range 10) 311 | -10/Materials | Build established: Mutant 477 | -10/Materials | Discovered new exit (range 3) 1373 | -10/Materials | Repaired Imp. EM Shotgun 1401 | -10/Materials | Repaired EM Pulse Gun 1548 | -10/Materials | Entered Mines 1559 | -10/Mines | Assisted by bots powering up and referring to "LRC-V3" 1562 | -10/Mines | Met a Derelict bent on vengeance 1681 | -10/Mines | Discovered new exit (range 14) 1940 | -10/Mines | Assembled infested the area 1945 | -10/Mines | Assisted by a Guerilla fighting off Assembled 1997 | -10/Mines | Core integrity fell below 50% 2007 | -10/Mines | Lost 3 allies 2064 | -10/Mines | Core integrity fell below 20% 2083 | -10/Mines | Lost 10 parts (1p2n2u5w) 2102 | -10/Mines | Entered Materials 2102 | -9/Materials | Evolved 2 slots: Utility x1, Weapon x1 2312 | -9/Materials | Discovered new exit (range 18) 2318 | -9/Materials | Identified exit to Materials 2321 | -9/Materials | Entered another Materials area 2321 | -8/Materials | Evolved 2 slots: Utility x1, Weapon x1 2477 | -8/Materials | Lost 7 parts (1p2n2u2w) 2835 | -8/Materials | Discovered new exit (range 9) 2901 | -8/Materials | Build established: Skirmisher 3244 | -8/Materials | Garrison activated, responded to threat 3592 | -8/Materials | Discovered new exit (range 9) 3671 | -8/Materials | Repaired Enh. Autogun 3718 | -8/Materials | Identified exit to Factory 3720 | -8/Materials | Entered Factory 3720 | -7/Factory | Evolved 2 slots: Utility x1, Weapon x1 5222 | -7/Factory | Discovered new exit (range 14) 5293 | -7/Factory | Identified exit to Lower Caves 5294 | -7/Factory | Entered Lower Caves 5441 | -7/Lower Caves | Found DCF Scrap (9 items) 5742 | -7/Lower Caves | Learned location of 1 exit from Proximity Caves 5774 | -7/Lower Caves | Entered a destroyed Warlord outpost 5959 | -7/Lower Caves | Discovered new exit (range 14) 6035 | -7/Lower Caves | Attacked by a delusional Derelict stockpiling Unaware 6251 | -7/Lower Caves | Identified exit to Lower Caves 6252 | -7/Lower Caves | Entered another Lower Caves area 6252 | -7/Lower Caves | Accompanied by 3 allies 6278 | -7/Lower Caves | Learned Factory security intel 6671 | -7/Lower Caves | Discovered new exit (range 8) 6893 | -7/Lower Caves | Discovered new exit (range 19) 6928 | -7/Lower Caves | Identified exit to Zion 6930 | -7/Lower Caves | Entered Zion 6982 | -7/Zion | Discovered new exit (range 19) 7001 | -7/Zion | Given the Hacking Drone Bay 7079 | -7/Zion | Given A8's code to call for help 7344 | -7/Zion | Learned Factory stockpile data 7492 | -7/Zion | Learned location of Quarantine (-3) 7518 | -7/Zion | Acquired unknown access codes intercepted by a Zionite 7582 | -7/Zion | Visited the Megawrench Repair Shop 7582 | -7/Zion | Megawrench repaired 9 parts 8240 | -7/Zion | Met Imprinter 8265 | -7/Zion | Imprinted 8267 | -7/Zion | Declared Zion's savior 8515 | -7/Zion | Identified exit to Proximity Caves 8531 | -7/Zion | Entered Proximity Caves 8531 | -6/Proximity Caves | Accompanied by 4 allies 8532 | -6/Proximity Caves | Identified exit to Factory 8663 | -6/Proximity Caves | Learned Factory trap positions 8671 | -6/Proximity Caves | Spotter reported a threat 8877 | -6/Proximity Caves | Entered Factory 8877 | -6/Factory | Accompanied by 4 allies 8877 | -6/Factory | Evolved 2 slots: Utility x2 8878 | -6/Factory | Loaded intel: 120 trap records 9057 | -6/Factory | Retrieved Zion intel report: Active Terminals 9184 | -6/Factory | Build established: Scavenger-Gunner 9256 | -6/Factory | Lost 3 allies 9539 | -6/Factory | Retrieved Zion intel report: Branch Access 9539 | -6/Factory | Identified exit to Lower Caves 9539 | -6/Factory | Identified exit to Extension 9540 | -6/Factory | Zion Hacker squad teleported in 9764 | -6/Factory | Found Prototype Launcher 9764 | -6/Factory | Identified Rocket Array 10054 | -6/Factory | Build established: Gunner 10418 | -6/Factory | Terminal network hard line cut 10944 | -6/Factory | Repaired Enh. Autogun 10977 | -6/Factory | Entered Extension 10977 | -6/Extension | Accompanied by 2 allies 11090 | -6/Extension | Retrieved Zion intel report: Depthwide Sectors/-5 11091 | -6/Extension | Zion Heavy squad teleported in 11267 | -6/Extension | Retrieved Zion intel report: Unaware Analyses 11268 | -6/Extension | Zion Recon squad teleported in 11295 | -6/Extension | Retrieved Zion intel report: Depthwide Sectors/-6 11326 | -6/Extension | Found Prototype Protection 11326 | -6/Extension | Identified Zio. Heavy Carapace 11384 | -6/Extension | Retrieved Zion intel report: Unaware Analyses 11425 | -6/Extension | Found Prototype Protection 11425 | -6/Extension | Identified Zio. Weapon Casing 11579 | -6/Extension | Spotted B-75 Beast 11610 | -6/Extension | Destroyed B-75 Beast 11622 | -6/Extension | Spotted B-75 Beast 12251 | -6/Extension | Build established: Scavenger-Gunner 12393 | -6/Extension | Destroyed B-75 Beast 12445 | -6/Extension | Discovered new exit (range 3) 12445 | -6/Extension | Identified exit to Factory 12514 | -6/Extension | Terminal network hard line cut 12825 | -6/Extension | Discovered exit to Factory (range 10) 12826 | -6/Extension | Discovered new exit (range 6) 12856 | -6/Extension | Identified exit to Cetus 12874 | -6/Extension | Entered Cetus 12874 | -6/Cetus | Accompanied by 3 allies 12889 | -6/Cetus | Spotted Cetus Guard 12891 | -6/Cetus | Spotted Cetus Guard 12895 | -6/Cetus | Spotted Cetus Guard 12897 | -6/Cetus | Allies destroyed Cetus Guard 12899 | -6/Cetus | Spotted Cetus Guard 12899 | -6/Cetus | Destroyed Cetus Guard 12907 | -6/Cetus | Allies destroyed Cetus Guard 12908 | -6/Cetus | Destroyed Cetus Guard 13035 | -6/Cetus | Enhanced Grunt warped into view, answering call for help 13039 | -6/Cetus | Discovered new exit (range 22) 13046 | -6/Cetus | Enhanced Grunt warped into view, answering call for help 13071 | -6/Cetus | Identified exit to Archives 13089 | -6/Cetus | Entered Archives 13089 | -6/Archives | Accompanied by 4 allies 13133 | -6/Archives | Discovered new exit (range 21) 13140 | -6/Archives | Found Prototype Device 13140 | -6/Archives | Identified Exp. Thermal Shield 13177 | -6/Archives | Identified exit to Hub_04(d) 13184 | -6/Archives | Entered Hub_04(d) 13184 | -6/Hub_04(d) | Accompanied by 3 allies 13217 | -6/Hub_04(d) | Zion Hacker squad teleported in 13457 | -6/Hub_04(d) | Disrupted transfer network 13485 | -6/Hub_04(d) | Discovered exit to Factory (range 16) 13493 | -6/Hub_04(d) | Garrison activated, responded to threat 13503 | -6/Hub_04(d) | Retrieved Zion intel report: Unaware Analyses 13695 | -6/Hub_04(d) | Retrieved Zion intel report: Unaware Schematics 13742 | -6/Hub_04(d) | Retrieved Zion intel report: Prototype Schematics 13817 | -6/Hub_04(d) | Discovered exit to Factory (range 8) 13830 | -6/Hub_04(d) | Crushed by falling debris 13861 | -6/Hub_04(d) | Lost 4 parts (2u2w) 13873 | -6/Hub_04(d) | Retrieved Zion intel report: Component Schematics 13884 | -6/Hub_04(d) | First assault squad dispatched 13907 | -6/Hub_04(d) | Network Hub disabled 13917 | -6/Hub_04(d) | Entered Factory 13917 | -5/Factory | Accompanied by 1 ally 13917 | -5/Factory | Evolved 2 slots: Propulsion x2 13918 | -5/Factory | Identified exit to Upper Caves 14324 | -5/Factory | Build established: Scavenger-Tank 14348 | -5/Factory | Central database locked down 14771 | -5/Factory | Garrison activated, responded to threat 14817 | -5/Factory | First assault squad dispatched 14817 | -5/Factory | Destroyed 11 combat bots 14904 | -5/Factory | Build established: Scavenger-Gunner 15025 | -5/Factory | Zion Light squad teleported in 15044 | -5/Factory | Lost 12 parts (1p3n3u5w) 15060 | -5/Factory | Entered Upper Caves 15060 | -5/Upper Caves | Accompanied by 2 allies 15188 | -5/Upper Caves | Attracted the attention of an 0b10 base 15248 | -5/Upper Caves | Found Zio. Weapon Casing 15308 | -5/Upper Caves | Learned Armory trap positions 15308 | -5/Upper Caves | Learned Armory terminal intel 15389 | -5/Upper Caves | Learned Factory emergency access door positions 15487 | -5/Upper Caves | Attracted the attention of an 0b10 checkpoint 15519 | -5/Upper Caves | Build established: Messiah-Gunner 15671 | -5/Upper Caves | Discovered new exit (range 12) 15686 | -5/Upper Caves | Entered another Upper Caves area 15999 | -5/Upper Caves | Learned location of 1 exit from Proximity Caves 16045 | -5/Upper Caves | Learned Factory security intel 16075 | -5/Upper Caves | Discovered new exit (range 13) 16119 | -5/Upper Caves | Entered Warlord 16120 | -5/Warlord | Identified exit to Proximity Caves 16178 | -5/Warlord | System corruption cleaned by Quarantine Array 16290 | -5/Warlord | Build established: Messiah-Tank 16374 | -5/Warlord | Rebuked by Warlord 16382 | -5/Warlord | Warlord's base attacked by MAIN.C 16500 | -5/Warlord | Found Prototype Energy Gun 16500 | -5/Warlord | Identified Vortex Rifle 16508 | -5/Warlord | Found Prototype Energy Cannon 16508 | -5/Warlord | Identified Vortex Driver 16513 | -5/Warlord | Found Prototype Launcher 16517 | -5/Warlord | Identified Vortex Catalyst Activator 16527 | -5/Warlord | Found Vortex Driver 16732 | -5/Warlord | Warlord forces counterattacked 17057 | -5/Warlord | Warlord base infiltrated, sounded retreat 17100 | -5/Warlord | Lost 4 allies 17284 | -5/Warlord | Spotted Striker 17302 | -5/Warlord | Core integrity fell below 50% 17302 | -5/Warlord | Entered Proximity Caves 17303 | -4/Proximity Caves | Identified exit to Factory 17323 | -4/Proximity Caves | Lost 4 allies 17332 | -4/Proximity Caves | Lost 4 parts (2n2w) 17769 | -4/Proximity Caves | Lost 4 parts (2n1u1w) 17900 | -4/Proximity Caves | Learned location of 1 exit from Research 17973 | -4/Proximity Caves | Lost 5 parts (1n2u2w) 17978 | -4/Proximity Caves | Entered Factory 17978 | -4/Factory | Evolved 2 slots: Power x1, Utility x1 17998 | -4/Factory | Zion Defense Resupply teleported in 18093 | -4/Factory | Lost 3 parts (1n1u1w) 18155 | -4/Factory | Zion Hacker squad teleported in 18305 | -4/Factory | Identified exit to Research 18506 | -4/Factory | Build established: Tank 18679 | -4/Factory | Repaired Plasma Rifle 18716 | -4/Factory | Identified exit to Upper Caves 18755 | -4/Factory | Entered Upper Caves 19028 | -4/Upper Caves | Build established: Skirmisher 19097 | -4/Upper Caves | Learned Research stockpile data 19850 | -4/Upper Caves | Learned 12 Research zone layouts 19889 | -4/Upper Caves | Discovered new exit (range 11) 19906 | -4/Upper Caves | Identified exit to Upper Caves 19933 | -4/Upper Caves | Entered another Upper Caves area 19977 | -4/Upper Caves | Attracted the attention of an 0b10 checkpoint 20017 | -4/Upper Caves | Lost 3 parts (1n2w) 20028 | -4/Upper Caves | Learned Research stockpile data 20280 | -4/Upper Caves | Spotted B-86 Titan 20544 | -4/Upper Caves | Discovered new exit (range 2) 20544 | -4/Upper Caves | Identified exit to Zhirov 20638 | -4/Upper Caves | Build established: Mutant 20761 | -4/Upper Caves | Entered Zhirov 20761 | -4/Zhirov | Discovered new exit (range 3) 20796 | -4/Zhirov | Met Zhirov 20832 | -4/Zhirov | Learned location of Testing (-2) 20832 | -4/Zhirov | Learned location of Command (-1) 20849 | -4/Zhirov | Zhirov requested help retrieving the SGEMP Prototype 20880 | -4/Zhirov | Found Alien Artifact 20880 | -4/Zhirov | Identified Integrated Reactor 20880 | -4/Zhirov | Installed Integrated Reactor, increased core energy generation (+10) 20957 | -4/Zhirov | Found Alien Artifact 21002 | -4/Zhirov | Entered Proximity Caves 21148 | -3/Proximity Caves | Spotted B-86 Titan 21212 | -3/Proximity Caves | Lost 5 parts (1p1n3w) 21290 | -3/Proximity Caves | System corruption reached 10% 21292 | -3/Proximity Caves | Lost 3 parts (1u2w) 21372 | -3/Proximity Caves | Discovered exit to Research (range 6) 21374 | -3/Proximity Caves | Attracted the attention of an 0b10 base 21376 | -3/Proximity Caves | Core integrity fell below 50% 21381 | -3/Proximity Caves | Entered Research 21381 | -3/Research | Evolved 2 slots: Power x1, Weapon x1 21382 | -3/Research | Identified exit to Armory 21383 | -3/Research | Identified exit to Research 21412 | -3/Research | Lost 3 parts (3n) 21826 | -3/Research | Build established: Executioner 21973 | -3/Research | Zion Heavy squad teleported in 22011 | -3/Research | Garrison activated, responded to threat 22036 | -3/Research | Zion Heavy squad teleported in 22072 | -3/Research | Spotted B-86 Titan 22088 | -3/Research | Allies destroyed B-86 Titan 22354 | -3/Research | Zion Light squad teleported in 22368 | -3/Research | Build established: Messiah-Executioner 22430 | -3/Research | P-80 Master assimilated allied W0-NML(z) 22434 | -3/Research | System corruption reached 10% 22511 | -3/Research | Zion Hacker squad teleported in 22530 | -3/Research | Allied Derelicts emerged from ambush trap array 22595 | -3/Research | Entered another Research area 22595 | -2/Research | Accompanied by 2 allies 22595 | -2/Research | Evolved 2 slots: Propulsion x1, Utility x1 22707 | -2/Research | Zion Heavy squad teleported in 22765 | -2/Research | Lost 4 parts (1p1u2w) 23109 | -2/Research | Garrison activated, responded to threat 23122 | -2/Research | Local machine network offline 23307 | -2/Research | Spotted B-90 Cyclops 23446 | -2/Research | Identified Transdimensional Reconstructor 23446 | -2/Research | Warped through subspace 23475 | -2/Research | Lost 6 parts (1n1u4w) 23827 | -2/Research | Build established: Scavenger-Executioner 23881 | -2/Research | Terminal network hard line cut 23980 | -2/Research | Lost 3 parts (1n2u) 24058 | -2/Research | Found Prototype Device 24058 | -2/Research | Identified Exp. Shield Generator 24095 | -2/Research | First assault squad dispatched 24124 | -2/Research | Found Prototype Protection 24124 | -2/Research | Identified Centrium Heavy Armor Plating 24267 | -2/Research | Lost 6 parts (1p1n4w) 24395 | -2/Research | Discovered new exit (range 6) 24434 | -2/Research | Spotted B-90 Cyclops 24454 | -2/Research | Entered Access 24454 | -1/Access | Evolved 2 slots: Utility x2 24626 | -1/Access | Garrison activated, responded to threat 24704 | -1/Access | First assault squad dispatched 24894 | -1/Access | Garrison activated, responded to threat 25076 | -1/Access | Lost 4 parts (1p3u) 25077 | -1/Access | Destroyed 9 combat bots 25233 | -1/Access | Spotted B-99 Colossus 25234 | -1/Access | Spotted B-99 Colossus 25323 | -1/Access | Lost 25 parts (3p5n9u8w) 25354 | -1/Access | Core integrity fell below 50% 25364 | -1/Access | Core integrity fell below 20% 25413 | -1/Access | Destroyed by S-43 Plague with Heavy Machine Gun Last Messages --------------- Node. 25357_ Penetrated by Slug. 25357_ Slug penetrates Wall. 25357_ Penetrated by Slug. 25358_ Slug penetrates H-88 Terminator. 25358_ H-88 Terminator suffers critical hit (Destroy). 25359_ Slug penetrates Wall. 25362_ Penetrated by Slug. 25363_ Slug penetrates Wall. 25363_ Slug penetrates H-88 Terminator. 25363_ Penetrated by Slug. 25370_ Knocked back. 25376_ System corrupted: Heat flow error (+204). 25380_ K-01 Serf cleans the Sealed Freight Elevator. 25400_ Slammed into K-01 Serf. 25406_ Detecting system override signal. 25408_ Acquired Enh. Quantum Rifle. 25412_ Destroyed Xenon Bombardment Thruster. Map ----- +----------------------------------------------------+ | ??????????????????????????????#####??????????????? | | ?????????????????????????????# ??????????????? | | ????????????????????????????? ??????????????? | | ?????????????????????????????# ??????????????? | | ?????????????????????????????# ???????????????? | | ?????????????????????????????# ???????????????? | | ?????????????????????????????# ???????????????? | | ????????????????????########## ???????????????? | | ????????????????????# # ????????????????? | | ????????????????????# ?# ????????????????? | | ????????????????????# " ?# ????????????????? | | ??????????????#?????# """ ??# ????????????????? | | ??????????????# ????# """??# ##+##+########???? | | ??????????????+ ???+ "???# # ! #???? | | ??????????????# ??# ???# # #???? | | ??? ########### ?#] ????# # #???? | | ?? ? ????# # #???? | | ?? ###+###### # #???? | | ?? %% + #???? | | ?? ######## #???? | | ?? #??????# #???? | | ?? ### ##??????# #???? | | ?? ######???# #???????# #???? | | ???### ????????????# #???????# #???? | | ?????# ???????????????#+######### ##### | | ??????????????????????# s@ ###########+### | | ??????????????????????# s ! #????# " | | ??????????????????????# #????# | | ??????????????????????# ! = #????# ####### ! | | ??????????????????????##########????# ???????##### | | ????????????????????????????????????#????????????? | | ?????????????????????????????????????????????????? | | ?????????????????????????????????????????????????? | | ?????????????????????????????????????????????????? | | ?????????????????????????????????????????????????? | | ?????????????????????????????????????????????????? | | ?????????????????????????????????????????????????? | | ?????????????????????????????????????????????????? | | ?????????????????????????????????????????????????? | | ?????????????????????????????????????????????????? | | ?????????????????????????????????????????????????? | | ?????????????????????????????????????????????????? | | ?????????????????????????????????????????????????? | | ?????????????????????????????????????????????????? | | ?????????????????????????????????????????????????? | | ?????????????????????????????????????????????????? | | ?????????????????????????????????????????????????? | | ?????????????????????????????????????????????????? | | ?????????????????????????????????????????????????? | | ?????????????????????????????????????????????????? | +----------------------------------------------------+ Best States ------------- Heat Dissipation 166 Coolant Potential 200 Energy Generation 84 Energy Capacity 1260 Matter Stores 300 Matter Capacity 300 Sight Range 22 Robot Scan Range 18 Terrain Scan Density 10 Power Amplification 30 Base Temperature (-) 200 Armor Coverage 1275 Resistance: KI 25 Weapon Shielding 100 Evasion (%) 55 Targeting Accuracy 16 Target Analysis 12 Core Analysis 6 Recoil Reduction 4 Particle Charging 25 Kinecelleration 40 Offensive Hacking 12 Item Schematics ----------------- Enh. Autogun | -7/Factory | Scanalyzed Riot Gun | -7/Zion | Free Flamer | -7/Zion | Free Enh. Flamer | -7/Zion | Free Imp. Heavy Machine Gun | -6/Hub_04(d) | Z-intel Cld. Aerolev Unit | -6/Hub_04(d) | Z-intel Cld. Airjet | -6/Hub_04(d) | Z-intel Imp. Spread Laser | -6/Hub_04(d) | Z-intel Mni. Assault Cannon | -6/Hub_04(d) | Z-intel Biomechanical Wings | -6/Hub_04(d) | Z-intel Gravity Neutralizer | -6/Hub_04(d) | Z-intel Antimatter Cannon | -6/Hub_04(d) | Z-intel Hvy. Laser | -6/Hub_04(d) | Z-intel Remote Shield | -6/Hub_04(d) | Z-intel Imp. Core Shielding | -6/Hub_04(d) | Z-intel Phase Cannon | -6/Hub_04(d) | Z-intel Med. Matter Pod | -6/Hub_04(d) | Z-intel Seismic Detector | -6/Hub_04(d) | Z-intel Imp. Trap Extractor | -6/Hub_04(d) | Z-intel EM Disruption Field | -6/Hub_04(d) | Z-intel Lrn. Missile Launcher | -6/Hub_04(d) | Z-intel Imp. Utility Shielding | -6/Hub_04(d) | Z-intel Adv. Sensor Array | -6/Hub_04(d) | Z-intel Energy Filter | -6/Hub_04(d) | Z-intel Adv. Treads | -5/Factory | Scanalyzed Assault Drone Bay | -4/Zhirov | Free Exp. Heat Sink | -4/Zhirov | Free Exp. Optical Array | -4/Zhirov | Free Imp. Arc Thrower | -4/Zhirov | Free Robot Schematics ------------------ A-15 Conveyor | -6/Hub_04(d) | Z-intel R-10 Processor | -6/Hub_04(d) | Z-intel G-50 Soldier | -6/Hub_04(d) | Z-intel Fabricated ------------ Nothing Repaired ---------- Imp. EM Shotgun | 54% | -10/Materials EM Pulse Gun | 55% | -10/Materials Enh. Autogun | 72% | -8/Materials Enh. Autogun | 75% | -6/Factory Plasma Rifle | 30% | -4/Factory Studied --------- Carbon-fiber Leg | -8/Materials | Hacked Flak Cannon | -8/Materials | Hacked Lgt. Treads | -7/Factory | Hacked Imp. Treads | -7/Factory | Hacked Imp. Ion Engine | -7/Factory | Hacked Flak Gun | -7/Factory | Hacked Med. Treads | -6/Factory | Hacked Imp. Deuterium Engine | -6/Factory | Hacked Arm. Medium Treads | -5/Factory | Hacked Linear Accelerator | -3/Research | Hacked Lgt. Antimatter Reactor | -3/Research | Hacked Rnf. Fission Core | -3/Research | Hacked Railgun | -3/Research | Hacked Alien Tech Used ----------------- Integrated Reactor Transdimensional Reconstructor Achievements -------------- Freeware Friend Of Zion Turtlemind Challenges ------------ None Game ------ Seed CatalystProjectionTorch Manual? 0 Play Time 03:49:02 Cumulative 129.5 hours Start 2026.06.30 @ 20:28:38 End 2026.07.01 @ 02:17:02 Sessions 3 Manual Loads 0 Difficulty Rogue Special Mode None Game No. 77 Rogue 77 Adventurer 0 Explorer 0 Win Type - Total 2 Types 2/0/0/0/0/0/0/0/0/0 Lore% 63 Gallery% 55 Achievement% 48 Wizard Run 0 Options --------- Layout 1 ASCII 0 Keyboard 0 Movement Numpad Keybinds 0 Fullscreen 1 Font 24/Smallcaps Map View 50x35 Zoom Use 0% Tactical HUD 1 Map Filters NONE Filters NONE Steam 1 RUN: 9cb7c9ed-77ec-4576-bc79-d48055942700